bitfinex/quotes_SOLUSD_20260213
["timestamp","ask_amount","ask_price","bid_price","bid_amount"]
[1770995591783,16.954518,82.68,82.64,16.954518]
[1770995591985,48.35641833,82.72,82.621,12.10344943]
[1770995591986,16.954518,82.7,82.651,3.17536841]
[1770995592288,16.954518,82.7,82.621,199.70708528]
[1770995592289,16.954518,82.7,82.66,3.17536841]
[1770995592484,12.0907863,82.708,82.67,16.954518]
[1770995592669,16.954518,82.69,82.66,15.27309342]
[1770995592867,12.0907863,82.708,82.67,16.954518]
[1770995593073,16.954518,82.7,82.661,3.17536841]
[1770995593279,12.0907863,82.708,82.67,16.954518]
[1770995593474,16.954518,82.69,82.661,3.17536841]
[1770995593691,3.13843399,82.689,82.646,3.17536841]
[1770995593993,16.954518,82.67,82.646,3.17536841]
[1770995594291,16.954518,82.68,82.646,12.09978556]
[1770995594476,3.13843399,82.689,82.651,12.09906716]
[1770995594477,12.09365325,82.688,82.651,12.09906716]
[1770995594679,16.954518,82.67,82.637,12.10110013]
[1770995594986,16.954518,82.66,82.62,20.12988641]
[1770995595192,16.954518,82.65,82.61,16.954518]
[1770995595388,16.954518,82.63,82.593,3.17536841]
[1770995595696,3.13843399,82.639,82.6,20.12988641]
[1770995595990,16.954518,82.65,82.611,3.17536841]
[1770995596189,36.28,82.665,82.611,3.17536841]
[1770995596190,16.954518,82.66,82.62,16.954518]
[1770995596396,16.954518,82.66,82.621,3.17536841]
[1770995596693,16.954518,82.67,82.632,3.17536841]
[1770995596993,12.09570118,82.674,82.615,45.7]
[1770995596994,16.954518,82.65,82.615,45.7]
[1770995597214,3.13843399,82.672,82.63,20.12988641]
[1770995597494,3.13843399,82.672,82.631,3.17536841]
[1770995597670,16.954518,82.67,82.631,3.17536841]
[1770995598194,20.09295199,82.69,82.65,16.954518]
[1770995598396,16.954518,82.67,82.63,16.954518]
[1770995598689,12.09643276,82.669,82.631,12.10199561]
[1770995598893,3.13843399,82.675,82.64,16.954518]
[1770995599194,16.954518,82.67,82.632,3.17536841]
[1770995599392,3.13843399,82.675,82.64,16.954518]
[1770995599604,3.13843399,82.689,82.631,42.35698465]
[1770995599894,16.954518,82.66,82.625,12.10283482]
[1770995600291,3.13843399,82.659,82.625,12.10283482]
[1770995600593,16.954518,82.67,82.625,12.10283482]
[1770995600798,16.954518,82.67,82.631,3.17536841]
[1770995601000,16.93799181,82.67,82.631,3.17536841]
[1770995601492,12.09394577,82.686,82.65,16.93799181]
[1770995601887,16.93799181,82.68,82.648,3.17536841]
[1770995602494,16.93799181,82.67,82.635,3.17536841]
[1770995602907,16.93799181,82.67,82.621,30.25865094]
[1770995602908,20.0764258,82.66,82.623,3.17536841]
[1770995603272,16.93799181,82.65,82.611,12.10492549]
[1770995603477,3.13843399,82.66,82.621,3.17536841]
[1770995603681,16.93799181,82.66,82.621,3.17536841]
[1770995604500,12.09643276,82.669,82.631,3.17536841]
[1770995604697,16.93799181,82.66,82.621,3.17536841]
[1770995604882,36.22,82.674,82.631,3.17536841]
[1770995605081,16.93799181,82.66,82.631,3.17536841]
[1770995605391,12.09593072,82.673,82.622,42.36159859]
[1770995605392,3.13843399,82.669,82.622,12.10331388]
[1770995605608,16.93799181,82.66,82.622,12.10331388]
[1770995606402,16.93799181,82.66,82.623,3.17536841]
[1770995606802,16.93799181,82.65,82.617,12.10397095]
[1770995607007,20.0764258,82.65,82.612,12.10477896]
[1770995607227,20.0764258,82.65,82.613,3.17536841]
[1770995607228,16.93799181,82.65,82.613,3.17536841]
[1770995607503,4.61729252,82.694,82.612,12.10477896]
[1770995607504,16.93799181,82.66,82.621,3.17536841]
[1770995607707,29.03576896,82.66,82.621,3.17536841]
[1770995608079,20.0764258,82.65,82.612,12.10477896]
[1770995608592,20.0764258,82.65,82.578,48.43899114]
[1770995608593,16.93799181,82.63,82.594,12.107417]
[1770995608786,12.10228854,82.629,82.594,12.107417]
[1770995608982,10.87144707,82.62,82.584,45.62]
[1770995609183,3.13843399,82.619,82.581,3.17536841]
[1770995609503,3.13843399,82.619,82.582,12.10917633]
[1770995609718,10.87144707,82.61,82.582,12.10917633]
[1770995609898,3.13843399,82.619,82.582,12.10917633]
[1770995610080,3.13843399,82.619,82.583,3.17536841]
[1770995611094,10.87144707,82.61,82.585,3.27933084]
[1770995611418,12.10375337,82.619,82.585,3.27933084]
[1770995611796,10.87144707,82.61,82.583,12.10900545]
[1770995612233,10.87144707,82.6,82.571,45.64]
[1770995612601,42.3631368,82.619,82.562,3.27933084]
[1770995612602,3.31135273,82.599,82.563,3.27933084]
[1770995612804,3.31135273,82.599,82.532,48.46585161]
[1770995612805,10.87144707,82.59,82.553,15.392761]
[1770995613006,10.87144707,82.58,82.549,45.68]
[1770995613193,10.87144707,82.58,82.495,48.4872555]
[1770995613194,10.87144707,82.56,82.528,3.27933084]
[1770995613507,10.87144707,82.57,82.531,3.27933084]
[1770995614197,14.1827998,82.56,82.526,45.68]
[1770995614395,10.87144707,82.55,82.51,3.27933084]
[1770995614594,10.87144707,82.56,82.511,3.27933084]
[1770995614824,10.87144707,82.57,82.521,3.27933084]
[1770995615307,14.1827998,82.54,82.505,12.12047754]
[1770995615505,10.87144707,82.55,82.506,3.27933084]
[1770995615706,10.87144707,82.55,82.511,3.27933084]
[1770995616012,3.31135273,82.554,82.505,12.12047754]
[1770995616187,10.87144707,82.54,82.505,12.12047754]
[1770995616511,4.61729252,82.584,82.505,12.12047754]
[1770995616512,3.31135273,82.579,82.521,3.27933084]
[1770995616809,12.10976289,82.578,82.531,3.3535155]
[1770995617017,10.87144707,82.57,82.533,3.3535155]
[1770995617197,30.26929589,82.592,82.541,3.3535155]
[1770995617392,10.87144707,82.58,82.541,3.3535155]
[1770995617591,10.87144707,82.57,82.541,3.3535155]
[1770995617889,10.87144707,82.58,82.541,3.3535155]
[1770995618093,3.17683748,82.609,82.56,10.87144707]
[1770995618290,3.17683748,82.609,82.571,3.3535155]
[1770995618525,10.87144707,82.62,82.581,3.3535155]
[1770995618705,12.10375337,82.619,82.581,3.3535155]
[1770995619410,12.10433509,82.616,82.582,12.10917633]
[1770995619620,10.87144707,82.61,82.571,12.1106981]
[1770995619815,10.87144707,82.6,82.568,3.3535155]
[1770995620121,10.87144707,82.6,82.567,45.68]
[1770995620122,42.36481732,82.616,82.567,45.68]
[1770995620123,3.17683748,82.589,82.567,45.68]
[1770995620333,10.87144707,82.58,82.55,45.68]
[1770995620620,3.17683748,82.623,82.571,3.3535155]
[1770995620824,10.87144707,82.61,82.571,3.3535155]
[1770995621119,3.17683748,82.599,82.559,3.3535155]
[1770995621414,10.87144707,82.59,82.555,12.11308066]
[1770995621720,10.87144707,82.59,82.555,42.3959224]
[1770995622017,10.87144707,82.6,82.561,3.3535155]
[1770995622320,10.87144707,82.6,82.563,3.3535155]
[1770995622521,10.87144707,82.6,82.565,3.3535155]
[1770995622710,10.87144707,82.61,82.565,3.3535155]
[1770995622907,10.87144707,82.6,82.565,3.3535155]
[1770995623420,10.87144707,82.59,82.553,45.7]
[1770995623721,3.17683748,82.596,82.56,10.87144707]
[1770995624016,3.17683748,82.596,82.554,49.0535155]
[1770995624017,12.10536509,82.608,82.571,3.3535155]
[1770995624210,10.87144707,82.6,82.571,3.3535155]
[1770995624416,3.17683748,82.607,82.571,3.3535155]
[1770995624595,10.87144707,82.6,82.571,3.3535155]
[1770995625002,3.17683748,82.599,82.57,45.7]
[1770995625225,10.87144707,82.59,82.558,3.3535155]
[1770995625417,10.87144707,82.62,82.553,45.7]
[1770995625418,3.17683748,82.579,82.553,45.7]
[1770995625619,3.17683748,82.579,82.542,45.7]
[1770995625816,48.41813861,82.614,82.542,45.7]
[1770995625817,3.17683748,82.608,82.551,3.3535155]
[1770995626123,15.28220257,82.608,82.571,3.3535155]
[1770995626321,42.36877783,82.608,82.571,3.3535155]
[1770995626497,3.17683748,82.589,82.569,45.7]
[1770995627119,3.17683748,82.589,82.553,45.7]
[1770995627311,3.17683748,82.601,82.561,3.3535155]
[1770995627503,10.87144707,82.6,82.561,3.3535155]
[1770995627901,10.87144707,82.59,82.561,3.3535155]
[1770995628207,10.87144707,82.61,82.57,10.87144707]
[1770995628411,9.88771493,82.661,82.554,102.96290911]
[1770995628412,3.17683748,82.637,82.591,3.3535155]
[1770995628612,10.87144707,82.62,82.591,3.3535155]
[1770995628804,3.17683748,82.629,82.591,3.3535155]
[1770995629004,12.10082406,82.639,82.601,3.3535155]
[1770995629424,10.87144707,82.63,82.602,12.1062444]
[1770995629634,15.27766154,82.639,82.603,3.3535155]
[1770995629924,3.17683748,82.638,82.603,3.3535155]
[1770995630706,10.87144707,82.63,82.593,12.10756359]
[1770995630923,10.87144707,82.63,82.594,45.68]
[1770995631127,10.87144707,82.63,82.595,3.3535155]
[1770995631313,10.87144707,82.64,82.601,3.3535155]
[1770995631516,10.87144707,82.64,82.603,3.3535155]
[1770995631716,10.87144707,82.65,82.611,3.3535155]
[1770995631915,3.17683748,82.665,82.621,3.3535155]
[1770995632128,10.87144707,82.66,82.623,3.3535155]
[1770995632815,10.87144707,82.66,82.63,10.87144707]
[1770995633017,36.12,82.686,82.622,45.68]
[1770995633018,10.87144707,82.67,82.631,3.3535155]
[1770995633809,3.17683748,82.669,82.632,12.10184916]
[1770995634125,3.17683748,82.669,82.633,3.3535155]
[1770995634334,10.87144707,82.67,82.633,3.3535155]
[1770995634530,3.17683748,82.675,82.633,3.3535155]
[1770995634531,10.87144707,82.66,82.633,3.3535155]
[1770995634759,10.87144707,82.67,82.633,3.3535155]
[1770995635031,3.17683748,82.669,82.632,12.10184916]
[1770995635232,3.17683748,82.669,82.633,3.3535155]
[1770995635926,3.17683748,82.669,82.634,12.10155626]
[1770995635927,14.04828455,82.66,82.634,12.10155626]
[1770995636306,10.87144707,82.65,82.623,12.10316739]
[1770995636512,10.87144707,82.64,82.603,3.3535155]
[1770995636708,10.87144707,82.66,82.621,3.3535155]
[1770995637128,10.87144707,82.66,82.63,10.87144707]
[1770995637333,10.87144707,82.66,82.625,49.0335155]
[1770995637634,10.87144707,82.66,82.63,10.87144707]
[1770995637843,3.17683748,82.674,82.633,3.3535155]
[1770995638127,3.17683748,82.669,82.633,3.3535155]
[1770995638432,3.17683748,82.659,82.626,12.10272795]
[1770995638614,42.33504973,82.674,82.625,45.68]
[1770995638615,3.17683748,82.649,82.625,45.68]
[1770995639010,10.87144707,82.64,82.619,12.10364472]
[1770995639230,3.17683748,82.639,82.606,45.68]
[1770995639431,10.87144707,82.63,82.606,45.68]
[1770995639640,10.87144707,82.62,82.594,3.3535155]
[1770995639818,10.87144707,82.62,82.597,12.10693617]
[1770995640018,10.87144707,82.62,82.591,12.10785678]
[1770995640213,10.87144707,82.61,82.573,12.11049616]
[1770995640419,10.87144707,82.6,82.568,45.7]
[1770995640618,10.87144707,82.61,82.58,10.87144707]
[1770995640833,10.87144707,82.62,82.591,3.26131701]
[1770995641032,3.50846245,82.619,82.579,3.26131701]
[1770995641232,36.02,82.639,82.568,45.7]
[1770995641233,10.87144707,82.62,82.581,3.26131701]
[1770995641434,15.61075099,82.629,82.59,10.87144707]
[1770995641737,3.50846245,82.609,82.571,12.1107895]
[1770995641930,3.50846245,82.599,82.562,12.11210968]
[1770995642238,42.36364956,82.618,82.552,15.3748939]
[1770995642239,10.87144707,82.58,82.552,15.3748939]
[1770995642431,10.87144707,82.57,82.544,45.68]
[1770995642635,3.50846245,82.569,82.53,10.87144707]
[1770995642839,10.87144707,82.57,82.531,3.26131701]
[1770995643028,3.50846245,82.569,82.531,3.26131701]
[1770995643220,14.37990952,82.55,82.521,12.11805605]
[1770995643540,3.50846245,82.529,82.485,3.26131701]
[1770995643837,10.87144707,82.52,82.485,15.38465025]
[1770995644038,3.50846245,82.529,82.49,10.87144707]
[1770995644240,10.87144707,82.55,82.51,10.87144707]
[1770995644441,10.87144707,82.55,82.521,3.26131701]
[1770995644619,15.62092694,82.56,82.521,3.26131701]
[1770995644620,12.11246449,82.56,82.521,3.26131701]
[1770995644826,48.42668598,82.6,82.504,45.68]
[1770995644827,10.87144707,82.58,82.541,3.26131701]
[1770995645331,10.87144707,82.57,82.541,3.26131701]
[1770995645535,10.87144707,82.57,82.534,45.68]
[1770995645536,3.50846245,82.57,82.534,45.68]
[1770995645738,14.37990952,82.58,82.54,10.87144707]
[1770995645944,10.87144707,82.58,82.543,3.26131701]
[1770995646244,3.50846245,82.569,82.534,45.68]
[1770995646430,14.37990952,82.56,82.534,45.68]
[1770995646630,3.50846245,82.569,82.53,10.87144707]
[1770995646835,10.87144707,82.56,82.525,12.11754013]
[1770995647036,3.50846245,82.569,82.53,10.87144707]
[1770995647746,10.87144707,82.57,82.531,3.26131701]
[1770995647952,12.10961624,82.579,82.541,12.11519123]
[1770995648129,15.61807869,82.579,82.541,12.11519123]
[1770995648528,10.87144707,82.57,82.538,12.11559722]
[1770995648735,10.87144707,82.57,82.54,10.87144707]
[1770995648936,15.61807869,82.579,82.54,10.87144707]
[1770995649137,3.50846245,82.579,82.54,10.87144707]
[1770995649326,3.50846245,82.569,82.531,3.26131701]
[1770995649530,3.50846245,82.622,82.551,3.26131701]
[1770995649733,10.87144707,82.6,82.561,3.26131701]
[1770995650033,10.87144707,82.58,82.551,12.1136382]
[1770995650236,3.50846245,82.579,82.551,12.1136382]
[1770995650430,10.87144707,82.57,82.538,12.11563158]
[1770995650630,10.87144707,82.58,82.541,3.26131701]
[1770995651848,35.96,82.594,82.533,12.11629943]
[1770995651849,10.87144707,82.56,82.533,12.11629943]
[1770995652054,10.87144707,82.56,82.494,5.36086188]
[1770995652055,12.11401712,82.549,82.51,10.87144707]
[1770995652282,12.11401712,82.549,82.489,3.26131701]
[1770995652283,10.87144707,82.54,82.5,10.87144707]
[1770995652435,10.87144707,82.55,82.51,10.87144707]
[1770995652753,3.50846245,82.549,82.511,3.26131701]
[1770995653250,3.50846245,82.529,82.49,10.87144707]
[1770995653431,35.94,82.528,82.49,10.87144707]
[1770995653633,42.39661315,82.554,82.46,0.2]
[1770995653634,3.50846245,82.509,82.471,12.12535355]
[1770995653834,192.37330677,82.554,82.46,0.2]
[1770995653835,10.87144707,82.49,82.46,0.2]
[1770995654027,3.50846245,82.499,82.461,12.12694485]
[1770995654028,12.12150597,82.498,82.461,12.12694485]
[1770995654431,10.87144707,82.49,82.461,12.12694485]
[1770995654633,10.87144707,82.49,82.46,11.07144707]
[1770995654952,3.50846245,82.489,82.46,0.2]
[1770995655150,10.87144707,82.47,82.441,12.12988682]
[1770995655451,35.96,82.472,82.44,23.20141337]
[1770995655954,35.96,82.482,82.45,10.87144707]
[1770995656141,35.96,82.482,82.451,12.12841566]
[1770995656142,12.12400431,82.481,82.451,12.12841566]
[1770995656345,35.96,82.482,82.451,12.12841566]
[1770995656652,30.30376493,82.498,82.451,12.12841566]
[1770995656653,3.50846245,82.499,82.451,12.12841566]
[1770995656850,10.87144707,82.48,82.44,11.07144707]
[1770995657032,10.87144707,82.48,82.441,12.12988682]
[1770995657857,35.96,82.479,82.441,12.12988682]
[1770995658158,35.96,82.479,82.44,11.07144707]
[1770995658159,35.96,82.502,82.461,3.26131701]
[1770995658361,12.12047639,82.506,82.471,3.26131701]
[1770995658551,12.12047639,82.506,82.451,42.44945482]
[1770995658552,12.12047639,82.506,82.463,3.26131701]
[1770995658852,3.50846245,82.499,82.451,12.12841566]
[1770995659056,3.50846245,82.489,82.451,12.12841566]
[1770995659353,3.50846245,82.505,82.461,3.26131701]
[1770995659530,35.96,82.504,82.461,3.26131701]
[1770995659732,39.46846245,82.504,82.461,3.26131701]
[1770995660053,12.12077136,82.503,82.462,12.12679779]
[1770995660249,12.12077136,82.503,82.47,10.87144707]
[1770995660558,12.12077136,82.503,82.44,11.07144707]
[1770995660559,3.50846245,82.499,82.46,10.87144707]
[1770995660855,35.98,82.502,82.461,15.38826186]
[1770995661061,10.87144707,82.5,82.461,15.38826186]
[1770995661434,3.41154041,82.499,82.461,12.12694485]
[1770995661747,36.0,82.498,82.47,14.32572708]
[1770995661945,36.0,82.497,82.471,3.45428001]
[1770995662150,48.44791643,82.563,82.44,108.11072023]
[1770995662151,30.29349944,82.526,82.49,10.87144707]
[1770995662340,36.0,82.525,82.49,10.87144707]
[1770995662745,12.11709965,82.528,82.491,3.45428001]
[1770995662940,3.41154041,82.526,82.48,10.89830413]
[1770995663342,36.0,82.527,82.491,3.45428001]
[1770995663639,36.02,82.533,82.501,3.45428001]
[1770995664054,39.43154041,82.533,82.491,12.12253457]
[1770995664455,48.13648387,82.533,82.501,3.45428001]
[1770995664636,12.11627695,82.534,82.501,3.45428001]
[1770995664841,15.52781736,82.534,82.5,10.89830413]
[1770995665042,15.52781736,82.534,82.491,45.88315102]
[1770995665256,3.41154041,82.529,82.491,15.57681458]
[1770995665757,10.89830413,82.52,82.47,30.31397075]
[1770995665958,10.89830413,82.52,82.472,3.45428001]
[1770995666263,36.04,82.519,82.49,10.89830413]
[1770995666457,36.04,82.519,82.483,3.45428001]
[1770995666656,3.41154041,82.518,82.482,12.12385732]
[1770995666859,36.04,82.517,82.482,12.12385732]
[1770995667154,14.30984454,82.51,82.471,15.57966611]
[1770995667457,14.30984454,82.51,82.469,12.12576847]
[1770995667458,36.04,82.509,82.469,12.12576847]
[1770995667650,3.41154041,82.499,82.46,10.89830413]
[1770995667847,10.89830413,82.49,82.455,3.45428001]
[1770995668244,3.41154041,82.499,82.455,3.45428001]
[1770995668461,3.41154041,82.497,82.46,10.89830413]
[1770995668762,10.89830413,82.49,82.456,12.12768021]
[1770995669060,3.41154041,82.489,82.45,3.45428001]
[1770995669359,10.89830413,82.5,82.461,3.45428001]
[1770995669656,36.06,82.512,82.47,10.89830413]
[1770995669839,10.89830413,82.51,82.471,3.45428001]
[1770995670036,3.41154041,82.499,82.457,3.45428001]
[1770995670247,10.89830413,82.49,82.461,12.12694485]
[1770995670435,10.89830413,82.48,82.444,3.45428001]
[1770995670641,10.89830413,82.48,82.446,12.12903286]
[1770995670859,36.06,82.481,82.446,12.12903286]
[1770995671038,36.06,82.481,82.451,3.43082577]
[1770995671243,42.4252709,82.498,82.451,3.43082577]
[1770995671548,42.4252709,82.498,82.446,12.12903286]
[1770995671549,10.89830413,82.48,82.447,3.43082577]
[1770995671745,36.06,82.497,82.461,3.43082577]
[1770995671941,10.89830413,82.5,82.461,3.43082577]
[1770995672146,10.89830413,82.5,82.471,3.43082577]
[1770995672355,12.12135904,82.499,82.471,3.43082577]
[1770995672871,10.89830413,82.51,82.473,3.43082577]
[1770995673163,10.89830413,82.49,82.461,3.43082577]
[1770995673371,10.89830413,82.5,82.461,3.43082577]
[1770995673577,10.89830413,82.49,82.461,3.43082577]
[1770995674063,10.89830413,82.49,82.451,3.43082577]
[1770995674254,10.89830413,82.5,82.463,3.43082577]
[1770995674456,10.89830413,82.5,82.437,45.52]
[1770995674457,10.89830413,82.49,82.451,3.43082577]
[1770995674858,3.53602493,82.498,82.451,3.43082577]
[1770995674859,10.89830413,82.48,82.451,3.43082577]
[1770995676249,12.1242983,82.479,82.44,14.5291299]
[1770995676560,10.89830413,82.47,82.441,15.65588366]
[1770995676758,12.1242983,82.479,82.442,3.52599684]
[1770995677571,30.30738253,82.489,82.441,12.12988682]
[1770995677572,12.12225807,82.493,82.451,3.52599684]
[1770995677757,3.43192932,82.499,82.441,42.45460389]
[1770995677758,10.89830413,82.49,82.45,14.42430097]
[1770995677948,36.08,82.494,82.451,3.52599684]
[1770995677949,10.89830413,82.48,82.451,3.52599684]
[1770995678277,10.89830413,82.47,82.441,12.12988682]
[1770995678568,10.89830413,82.47,82.442,3.52599684]
[1770995678766,36.08,82.475,82.442,3.52599684]
[1770995679078,10.89830413,82.48,82.442,3.52599684]
[1770995679388,10.89830413,82.46,82.44,0.2]
[1770995679553,3.43192932,82.469,82.44,12.32992642]
[1770995679854,3.43192932,82.478,82.44,0.2]
[1770995680167,10.89830413,82.48,82.442,3.52599684]
[1770995680367,12.1244453,82.478,82.443,15.6555894]
[1770995680675,48.224428,82.479,82.444,3.52599684]
[1770995681173,10.89830413,82.47,82.44,0.2]
[1770995681554,10.89830413,82.46,82.44,0.2]
[1770995681762,10.89830413,82.47,82.44,3.72599684]
[1770995682297,10.89830413,82.46,82.44,0.2]
[1770995682454,23.02554076,82.46,82.441,3.52599684]
[1770995682953,23.02554076,82.46,82.44,0.2]
[1770995683155,12.12576847,82.469,82.44,0.2]
[1770995683353,10.89830413,82.46,82.44,0.2]
[1770995683563,12.12576847,82.469,82.44,0.2]
[1770995683755,10.89830413,82.46,82.44,0.2]
[1770995683954,3.43192932,82.459,82.43,0.2]
[1770995684155,12.12576847,82.469,82.408,3.52599684]
[1770995684156,10.89830413,82.44,82.408,3.52599684]
[1770995684374,12.1301811,82.439,82.408,3.52599684]
[1770995684559,12.1301811,82.439,82.387,30.34437669]
[1770995684560,10.89830413,82.43,82.397,3.52599684]
[1770995684764,10.89830413,82.43,82.398,12.13621689]
[1770995685066,10.89830413,82.43,82.378,45.44]
[1770995685067,10.89830413,82.42,82.381,3.52599684]
[1770995685458,3.43192932,82.438,82.391,3.52599684]
[1770995685459,10.89830413,82.43,82.391,3.52599684]
[1770995685855,10.89830413,82.42,82.391,3.52599684]
[1770995686048,3.43192932,82.419,82.38,10.89830413]
[1770995686270,3.43192932,82.419,82.381,3.52599684]
[1770995686573,10.89830413,82.41,82.381,3.52599684]
[1770995686777,3.43192932,82.419,82.364,45.42]
[1770995686778,10.89830413,82.4,82.372,12.13992768]
[1770995686950,12.13459694,82.409,82.373,3.52599684]
[1770995687352,3.43192932,82.449,82.391,3.52599684]
[1770995687655,48.49730602,82.479,82.373,3.52599684]
[1770995687656,10.89830413,82.41,82.373,3.52599684]
[1770995687963,10.89830413,82.38,82.351,3.52599684]
[1770995688360,10.89830413,82.37,82.341,3.52599684]
[1770995688678,14.33023345,82.37,82.342,12.14447062]
[1770995688875,14.33023345,82.37,82.332,15.67194252]
[1770995688876,10.89830413,82.36,82.332,15.67194252]
[1770995689176,30.34380717,82.39,82.341,3.52599684]
[1770995689374,23.03569944,82.39,82.351,3.52599684]
[1770995689797,10.89830413,82.38,82.351,3.52599684]
[1770995690076,12.13739531,82.39,82.332,12.14594568]
[1770995690077,10.89830413,82.36,82.332,12.14594568]
[1770995690601,10.89830413,82.35,82.321,3.52599684]
[1770995690883,10.89830413,82.34,82.301,3.52599684]
[1770995691083,48.30196384,82.359,82.321,3.52599684]
[1770995691272,30.3497409,82.374,82.321,3.52599684]
[1770995691455,36.16,82.366,82.331,3.52599684]
[1770995691663,10.89830413,82.36,82.331,3.52599684]
[1770995691979,36.16,82.366,82.331,3.52599684]
[1770995692153,10.89830413,82.37,82.331,3.52599684]
[1770995692686,10.89830413,82.37,82.333,3.52599684]
[1770995692892,48.5421637,82.403,82.332,12.14594568]
[1770995692893,30.34008649,82.4,82.351,3.52599684]
[1770995693100,48.51719513,82.445,82.332,42.51080988]
[1770995693101,10.89830413,82.42,82.381,3.52599684]
[1770995693262,10.89830413,82.42,82.39,10.89830413]
[1770995693458,10.89830413,82.42,82.335,4.61729252]
[1770995693459,12.1301811,82.439,82.401,3.52599684]
[1770995693663,30.32169782,82.45,82.41,14.42430097]
[1770995693664,12.12930514,82.445,82.41,14.42430097]
[1770995693861,12.12930514,82.445,82.37,45.38]
[1770995693862,10.89830413,82.44,82.408,3.52599684]
[1770995694063,10.89830413,82.42,82.38,14.42430097]
[1770995694287,3.43192932,82.429,82.381,3.52599684]
[1770995694473,10.89830413,82.42,82.381,3.52599684]
[1770995694676,10.89830413,82.41,82.37,56.27830413]
[1770995694875,10.89830413,82.41,82.373,12.13982806]
[1770995695067,36.18,82.419,82.361,12.14162088]
[1770995695068,14.33023345,82.4,82.361,12.14162088]
[1770995695382,10.89830413,82.39,82.358,15.66809278]
[1770995695681,10.89830413,82.4,82.361,3.52599684]
[1770995696268,14.33023345,82.4,82.361,3.52599684]
[1770995696468,10.89830413,82.41,82.371,3.52599684]
[1770995696766,12.13459694,82.409,82.373,3.52599684]
[1770995697166,3.43192932,82.424,82.372,12.14004758]
[1770995697167,10.89830413,82.43,82.391,3.52599684]
[1770995697480,12.13219728,82.426,82.391,3.52599684]
[1770995697982,36.18,82.437,82.401,3.52599684]
[1770995698288,12.13069585,82.436,82.401,3.52599684]
[1770995698464,3.43192932,82.43,82.39,10.89830413]
[1770995698783,12.13165269,82.429,82.39,23.03565131]
[1770995699098,10.89830413,82.42,82.389,12.13754263]
[1770995699298,12.13101639,82.434,82.401,3.52599684]
[1770995699460,10.89830413,82.43,82.39,10.89830413]
[1770995699782,14.33023345,82.42,82.381,3.52599684]
[1770995700085,10.89830413,82.42,82.382,3.52599684]
[1770995700387,36.2,82.435,82.401,3.52599684]
[1770995700585,36.2,82.435,82.365,48.56385002]
[1770995700586,10.89830413,82.41,82.374,3.52599684]
[1770995700787,12.12959256,82.443,82.248,61.7483115]
[1770995700788,36.2,82.414,82.381,3.50494182]
[1770995700980,12.12959256,82.443,82.391,3.50494182]
[1770995701163,10.89830413,82.44,82.401,3.50494182]
[1770995701595,10.89830413,82.44,82.41,3.50494182]
[1770995701885,14.4299198,82.44,82.401,3.50494182]
[1770995702184,42.45357397,82.443,82.38,10.89830413]
[1770995702185,10.89830413,82.42,82.38,10.89830413]
[1770995702369,3.53161567,82.419,82.37,3.50494182]
[1770995702684,4.61729252,82.447,82.37,3.50494182]
[1770995702685,10.89830413,82.42,82.391,3.50494182]
[1770995702876,12.13253582,82.423,82.393,3.50494182]
[1770995703062,10.89830413,82.44,82.401,3.50494182]
[1770995703262,10.89830413,82.44,82.41,10.89830413]
[1770995703463,10.89830413,82.42,82.385,3.50494182]
[1770995703658,3.53161567,82.429,82.385,3.50494182]
[1770995703887,3.53161567,82.429,82.39,14.40324595]
[1770995704180,10.89830413,82.42,82.39,3.50494182]
[1770995704388,10.89830413,82.42,82.316,48.59290628]
[1770995704389,3.53161567,82.399,82.36,10.89830413]
[1770995704591,3.53161567,82.399,82.287,48.6101606]
[1770995704592,10.89830413,82.44,82.323,3.50494182]
[1770995704593,3.53161567,82.368,82.323,3.50494182]
[1770995704884,3.53161567,82.368,82.322,12.1474211]
[1770995704885,36.18,82.386,82.351,3.50494182]
[1770995705182,42.47727465,82.397,82.361,3.50494182]
[1770995705404,12.13362891,82.416,82.381,3.50494182]
[1770995705563,12.13362891,82.416,82.322,236.87471145]
[1770995705564,12.13047539,82.437,82.391,3.50494182]
[1770995705900,12.12885697,82.448,82.411,3.50494182]
[1770995706065,12.12870986,82.449,82.42,10.89830413]
[1770995706568,10.89830413,82.46,82.43,3.50494182]
[1770995706884,10.89830413,82.47,82.432,3.50494182]
[1770995707185,10.89830413,82.46,82.421,3.50494182]
[1770995707386,10.89830413,82.46,82.431,3.50494182]
[1770995707569,10.89830413,82.46,82.41,10.89830413]
[1770995707570,10.89830413,82.45,82.412,3.50494182]
[1770995707772,10.89830413,82.47,82.431,3.50494182]
[1770995708173,10.89830413,82.48,82.44,10.89830413]
[1770995708488,10.07563119,82.523,82.411,42.47005859]
[1770995708489,10.89830413,82.49,82.451,3.50494182]
[1770995708662,10.89830413,82.49,82.461,3.50494182]
[1770995708865,3.53161567,82.526,82.471,3.50494182]
[1770995709084,48.44796822,82.563,82.452,12.12826856]
[1770995709085,23.11519369,82.53,82.491,3.50494182]
[1770995709276,0.1,82.53,82.501,3.50494182]